[Event "*** Titled Tuesday 3|2 Blitz"]
[Site "Chess.com"]
[Date "2015.12.01"]
[Round "1"]
[White "bugsbunny444"]
[Black "salomez"]
[Result "1-0"]
[WhiteElo "2354"]
[BlackElo "2082"]
[TimeControl "180+2"]
[EndTime "11:11:13 PST"]
[Termination "bugsbunny444 won by resignation"]

1. Nf3 {[%clk 0:02:59.5]} 1... Nf6 {[%clk 0:03:00.2]} 2. c4 {[%clk 0:03:00.4]}
2... g6 {[%clk 0:03:01]} 3. b4 {[%clk 0:03:01.2]} 3... Bg7 {[%clk 0:03:01]} 4.
Bb2 {[%clk 0:03:02.6]} 4... O-O {[%clk 0:03:02.3]} 5. g3 {[%clk 0:03:04]} 5...
d5 {[%clk 0:03:01.6]} 6. cxd5 {[%clk 0:03:04.9]} 6... Nxd5 {[%clk 0:03:01.5]} 7.
Bxg7 {[%clk 0:03:06.5]} 7... Kxg7 {[%clk 0:03:03.1]} 8. Qb3 {[%clk 0:03:08.2]}
8... Nb6 {[%clk 0:02:36.5]} 9. Bg2 {[%clk 0:03:07]} 9... Nc6 {[%clk 0:02:34.4]}
10. O-O {[%clk 0:03:03.1]} 10... Be6 {[%clk 0:02:30.6]} 11. Qb2+ {[%clk
0:03:02.8]} 11... f6 {[%clk 0:02:31.2]} 12. d3 {[%clk 0:02:57.5]} 12... a6
{[%clk 0:02:28.6]} 13. Nc3 {[%clk 0:02:48.5]} 13... Qd7 {[%clk 0:02:26.3]} 14.
Ne4 {[%clk 0:02:44.9]} 14... Na4 {[%clk 0:02:25.2]} 15. Qa3 {[%clk 0:02:36.5]}
15... b5 {[%clk 0:02:25.7]} 16. Rfc1 {[%clk 0:02:24.8]} 16... Bd5 {[%clk
0:02:26.1]} 17. Nc3 {[%clk 0:02:17]} 17... Nxc3 {[%clk 0:02:22.6]} 18. Qxc3
{[%clk 0:02:17.6]} 18... Nd8 {[%clk 0:01:51.6]} 19. Qxc7 {[%clk 0:02:12.3]}
19... Qxc7 {[%clk 0:01:48]} 20. Rxc7 {[%clk 0:02:13.3]} 20... Re8 {[%clk
0:01:38.6]} 21. Nd4 {[%clk 0:02:03.7]} 21... Bxg2 {[%clk 0:01:38.1]} 22. Kxg2
{[%clk 0:02:05.6]} 22... Kf7 {[%clk 0:01:38]} 23. a4 {[%clk 0:02:01.7]} 23...
Ne6 {[%clk 0:01:34.4]} 24. Nxe6 {[%clk 0:02:01.6]} 24... Kxe6 {[%clk 0:01:35.4]}
25. axb5 {[%clk 0:02:03]} 25... axb5 {[%clk 0:01:33.3]} 26. Rxa8 {[%clk
0:01:49.6]} 26... Rxa8 {[%clk 0:01:33.8]} 27. Rb7 {[%clk 0:01:43]} 27... Kd6
{[%clk 0:01:34]} 28. Rxb5 {[%clk 0:01:43.2]} 28... Kc6 {[%clk 0:01:27.5]} 29.
Rc5+ {[%clk 0:01:32.2]} 29... Kd6 {[%clk 0:01:27.9]} 30. Kf3 {[%clk 0:01:14.7]}
30... Ra4 {[%clk 0:01:28.5]} 31. Rc4 {[%clk 0:01:14.4]} 31... h5 {[%clk
0:01:27.8]} 32. h4 {[%clk 0:01:15.5]} 32... Ra2 {[%clk 0:01:26.1]} 33. Rd4+
{[%clk 0:01:05.5]} 33... Kc6 {[%clk 0:01:20]} 34. Rc4+ {[%clk 0:01:03.3]} 34...
Kd6 {[%clk 0:01:20.2]} 35. Ke3 {[%clk 0:00:55.7]} 35... Rb2 {[%clk 0:01:19.5]}
36. f4 {[%clk 0:00:27.5]} 36... Ke6 {[%clk 0:01:12.5]} 37. Kf3 {[%clk
0:00:25.5]} 37... Kd6 {[%clk 0:01:12.2]} 38. e4 {[%clk 0:00:23.7]} 38... Ke6
{[%clk 0:01:12.3]} 39. Rc6+ {[%clk 0:00:12.4]} 39... Kd7 {[%clk 0:01:12.8]} 40.
Rc4 {[%clk 0:00:12]} 40... Kd6 {[%clk 0:01:13.8]} 41. Ke3 {[%clk 0:00:10.4]}
41... Rg2 {[%clk 0:01:13.7]} 42. Kf3 {[%clk 0:00:11.2]} 42... Rb2 {[%clk
0:01:14.4]} 43. Ke3 {[%clk 0:00:06.3]} 43... Rg2 {[%clk 0:01:15]} 44. Rd4+
{[%clk 0:00:06.5]} 44... Kc6 {[%clk 0:01:14.1]} 45. Kf3 {[%clk 0:00:07.5]} 45...
Rb2 {[%clk 0:01:14.7]} 46. Rc4+ {[%clk 0:00:08.3]} 46... Kd6 {[%clk 0:01:15.3]}
47. g4 {[%clk 0:00:09.8]} 47... hxg4+ {[%clk 0:01:11.3]} 48. Kxg4 {[%clk
0:00:11.3]} 48... Rd2 {[%clk 0:01:07.4]} 49. Rd4+ {[%clk 0:00:11.8]} 49... Ke6
{[%clk 0:01:04.1]} 50. f5+ {[%clk 0:00:11.3]} 50... gxf5+ {[%clk 0:00:38.7]} 51.
exf5+ {[%clk 0:00:13.2]} 51... Ke5 {[%clk 0:00:38.3]} 52. Re4+ {[%clk
0:00:14.5]} 52... Kd6 {[%clk 0:00:38.6]} 53. Re6+ {[%clk 0:00:06.8]} 53... Kd7
{[%clk 0:00:37.9]} 54. Re3 {[%clk 0:00:07.4]} 54... Rb2 {[%clk 0:00:34.7]} 55.
Re4 {[%clk 0:00:07.2]} 55... Rd2 {[%clk 0:00:34.3]} 56. h5 {[%clk 0:00:04.4]}
56... Rxd3 {[%clk 0:00:15]} 57. h6 {[%clk 0:00:05.7]} 57... Ra3 {[%clk
0:00:15.2]} 58. Kh5 {[%clk 0:00:05.9]} 58... Ra8 {[%clk 0:00:11.2]} 59. Kg6
{[%clk 0:00:06.8]} 59... Rg8+ {[%clk 0:00:10.5]} 60. Kf7 {[%clk 0:00:06.8]}
60... Rg5 {[%clk 0:00:08.5]} 61. Rxe7+ {[%clk 0:00:07.4]} 61... Kd6 {[%clk
0:00:08.8]} 62. Kxf6 {[%clk 0:00:05.7]} 62... Rh5 {[%clk 0:00:07.9]} 63. h7
{[%clk 0:00:06.2]} 63... Rh6+ {[%clk 0:00:08.8]} 64. Kg5 {[%clk 0:00:06.4]}
64... Rh1 {[%clk 0:00:08.8]} 65. Rf7 {[%clk 0:00:06.4]} 65... Rg1+ {[%clk
0:00:08.8]} 66. Kf6 {[%clk 0:00:07.7]} 66... Rh1 {[%clk 0:00:09.5]} 67. Kg7
{[%clk 0:00:09.1]} 67... Rg1+ {[%clk 0:00:09.9]} 68. Kf8 {[%clk 0:00:09.2]}
68... Rh1 {[%clk 0:00:09.6]} 69. Kg8 {[%clk 0:00:09.8]} 69... Ke5 {[%clk
0:00:09.5]} 70. h8=Q+ {[%clk 0:00:10.5]} 1-0

[Event "*** Titled Tuesday 3|2 Blitz"]
[Site "Chess.com"]
[Date "2015.12.01"]
[Round "1"]
[White "Dlugy"]
[Black "Canairez"]
[Result "0-1"]
[WhiteElo "2515"]
[BlackElo "2226"]
[TimeControl "180+2"]
[EndTime "11:11:14 PST"]
[Termination "Canairez won on time"]

1. d4 {[%clk 0:02:46.5]} 1... c6 {[%clk 0:03:01.9]} 2. Bf4 {[%clk 0:02:44.3]}
2... d5 {[%clk 0:03:03.8]} 3. e3 {[%clk 0:02:39.2]} 3... Nf6 {[%clk 0:03:05.3]}
4. c4 {[%clk 0:02:32.5]} 4... Qb6 {[%clk 0:03:06.6]} 5. Qc1 {[%clk 0:02:27.3]}
5... Bf5 {[%clk 0:03:05.8]} 6. Nc3 {[%clk 0:02:25.8]} 6... e6 {[%clk 0:03:07.3]}
7. Nf3 {[%clk 0:02:14.2]} 7... Be7 {[%clk 0:03:02.5]} 8. Be2 {[%clk 0:02:07.2]}
8... O-O {[%clk 0:03:02.8]} 9. O-O {[%clk 0:02:06.8]} 9... Nbd7 {[%clk
0:03:03.8]} 10. h3 {[%clk 0:02:07.1]} 10... Ne4 {[%clk 0:03:01.4]} 11. c5 {[%clk
0:02:07.6]} 11... Qa5 {[%clk 0:02:45.1]} 12. Nd2 {[%clk 0:02:03.7]} 12... Nxc3
{[%clk 0:02:34.4]} 13. Qxc3 {[%clk 0:02:00]} 13... Qxc3 {[%clk 0:02:32.7]} 14.
bxc3 {[%clk 0:02:00.6]} 14... b5 {[%clk 0:02:23.4]} 15. a4 {[%clk 0:01:58.6]}
15... a6 {[%clk 0:02:24.1]} 16. Nb3 {[%clk 0:01:58]} 16... Bc2 {[%clk
0:02:17.9]} 17. Na5 {[%clk 0:01:58.1]} 17... Rfc8 {[%clk 0:02:15]} 18. Bd1
{[%clk 0:01:58.7]} 18... Bd3 {[%clk 0:02:05.4]} 19. Re1 {[%clk 0:01:59.5]} 19...
e5 {[%clk 0:01:56.9]} 20. Bg3 {[%clk 0:01:56.2]} 20... Ra7 {[%clk 0:01:35.5]}
21. Be2 {[%clk 0:01:47]} 21... Bxe2 {[%clk 0:01:29.9]} 22. Rxe2 {[%clk
0:01:47.6]} 22... Bd8 {[%clk 0:01:27.9]} 23. Nxc6 {[%clk 0:01:43.5]} 23... Rxc6
{[%clk 0:01:21]} 24. axb5 {[%clk 0:01:45.4]} 24... Rc8 {[%clk 0:01:17.3]} 25.
Rea2 {[%clk 0:01:43.4]} 25... a5 {[%clk 0:00:56.3]} 26. b6 {[%clk 0:01:39.6]}
26... Nxb6 {[%clk 0:00:57.4]} 27. cxb6 {[%clk 0:01:39.2]} 27... Bxb6 {[%clk
0:00:59.3]} 28. Rb1 {[%clk 0:01:35.9]} 28... Ra6 {[%clk 0:00:53.9]} 29. Bxe5
{[%clk 0:01:32.4]} 29... Rxc3 {[%clk 0:00:53.9]} 30. Rb5 {[%clk 0:01:26.8]}
30... f6 {[%clk 0:00:52.3]} 31. Bf4 {[%clk 0:01:14.3]} 31... a4 {[%clk
0:00:53.5]} 32. Rxd5 {[%clk 0:01:10.3]} 32... a3 {[%clk 0:00:54.3]} 33. Bd6
{[%clk 0:01:10.3]} 33... Kf7 {[%clk 0:00:51.7]} 34. Rb5 {[%clk 0:00:51.4]} 34...
Ke6 {[%clk 0:00:45.2]} 35. Bf8 {[%clk 0:00:51.5]} 35... g5 {[%clk 0:00:39.3]}
36. d5+ {[%clk 0:00:46.9]} 36... Kd7 {[%clk 0:00:38.4]} 37. Rxa3 {[%clk
0:00:47.6]} 37... Bc7 {[%clk 0:00:19.2]} 38. d6 {[%clk 0:00:37.2]} 38... Raxa3
{[%clk 0:00:13]} 39. dxc7 {[%clk 0:00:35.4]} 39... Ra1+ {[%clk 0:00:13.7]} 40.
Kh2 {[%clk 0:00:35.8]} 40... Rxc7 {[%clk 0:00:14.7]} 41. g4 {[%clk 0:00:34.4]}
41... Rc2 {[%clk 0:00:15]} 42. Rf5 {[%clk 0:00:24.1]} 42... Rf1 {[%clk
0:00:14.5]} 43. Kg2 {[%clk 0:00:24.4]} 43... Rcc1 {[%clk 0:00:12.6]} 44. Rxf6
{[%clk 0:00:25.5]} 44... Rg1+ {[%clk 0:00:14.1]} 45. Kf3 {[%clk 0:00:24.6]}
45... Rh1 {[%clk 0:00:14.7]} 46. Rh6 {[%clk 0:00:24.6]} 46... Rcf1 {[%clk
0:00:15.8]} 47. Bd6 {[%clk 0:00:22.4]} 47... Rhg1 {[%clk 0:00:12.2]} 48. Bg3
{[%clk 0:00:22.4]} 48... Ra1 {[%clk 0:00:11.4]} 49. Rxh7+ {[%clk 0:00:22.4]}
49... Ke6 {[%clk 0:00:13.3]} 50. Rh6+ {[%clk 0:00:17]} 50... Kf7 {[%clk
0:00:15.2]} 51. h4 {[%clk 0:00:09.5]} 51... Ra8 {[%clk 0:00:16.9]} 52. hxg5
{[%clk 0:00:02.5]} 52... Kg7 {[%clk 0:00:18.8]} 0-1

[Event "*** Titled Tuesday 3|2 Blitz"]
[Site "Chess.com"]
[Date "2015.12.01"]
[Round "1"]
[White "Maitreia"]
[Black "HansCoolNiemann"]
[Result "0-1"]
[WhiteElo "2457"]
[BlackElo "2185"]
[TimeControl "180+2"]
[EndTime "11:11:25 PST"]
[Termination "HansCoolNiemann won by checkmate"]

1. c4 {[%clk 0:03:01.7]} 1... Nf6 {[%clk 0:02:51.7]} 2. g3 {[%clk 0:03:03.6]}
2... g6 {[%clk 0:02:51.4]} 3. Bg2 {[%clk 0:03:05.1]} 3... Bg7 {[%clk 0:02:51.1]}
4. Nf3 {[%clk 0:03:06.7]} 4... O-O {[%clk 0:02:48.2]} 5. O-O {[%clk 0:03:08.2]}
5... d5 {[%clk 0:02:48.5]} 6. cxd5 {[%clk 0:03:09.3]} 6... Nxd5 {[%clk
0:02:50.3]} 7. Nc3 {[%clk 0:03:11.1]} 7... Nb6 {[%clk 0:02:45.1]} 8. d3 {[%clk
0:03:11.8]} 8... Nc6 {[%clk 0:02:45.7]} 9. Be3 {[%clk 0:03:12.8]} 9... e5 {[%clk
0:02:46.2]} 10. Rc1 {[%clk 0:03:11]} 10... h6 {[%clk 0:02:42.9]} 11. d4 {[%clk
0:03:01.1]} 11... exd4 {[%clk 0:02:41.8]} 12. Nxd4 {[%clk 0:02:45.2]} 12... Nxd4
{[%clk 0:02:39.3]} 13. Qd2 {[%clk 0:02:33.2]} 13... Nc4 {[%clk 0:02:38.5]} 14.
Qd3 {[%clk 0:02:27.4]} 14... Nxe3 {[%clk 0:02:37.8]} 15. Qxe3 {[%clk 0:02:29.3]}
15... Nf5 {[%clk 0:02:34.3]} 16. Qf4 {[%clk 0:02:27.5]} 16... c6 {[%clk
0:02:29]} 17. Rfd1 {[%clk 0:02:28]} 17... Qg5 {[%clk 0:02:25.3]} 18. Qb4 {[%clk
0:02:25.4]} 18... Qe7 {[%clk 0:02:19.9]} 19. Qa5 {[%clk 0:02:17.9]} 19... Be6
{[%clk 0:02:18.6]} 20. e4 {[%clk 0:02:18.4]} 20... Nd4 {[%clk 0:02:17.1]} 21. e5
{[%clk 0:02:12.9]} 21... Rfd8 {[%clk 0:02:12.7]} 22. f4 {[%clk 0:02:12]} 22...
b6 {[%clk 0:02:09.4]} 23. Qa4 {[%clk 0:02:09.4]} 23... b5 {[%clk 0:02:09.2]} 24.
Qa6 {[%clk 0:02:04.1]} 24... Bg4 {[%clk 0:02:00.2]} 25. Rf1 {[%clk 0:01:40.4]}
25... Qc5 {[%clk 0:01:51.9]} 26. Ne4 {[%clk 0:01:31.2]} 26... Qb6 {[%clk
0:01:42.3]} 27. Qxb6 {[%clk 0:01:12.8]} 27... axb6 {[%clk 0:01:44.2]} 28. Kh1
{[%clk 0:01:06.9]} 28... Be2 {[%clk 0:01:36.4]} 29. Rf2 {[%clk 0:01:04.6]} 29...
Bc4 {[%clk 0:01:36.2]} 30. Nd6 {[%clk 0:00:59.2]} 30... Rxa2 {[%clk 0:01:21]}
31. Rd1 {[%clk 0:00:47.7]} 31... Nf5 {[%clk 0:01:08.3]} 32. Bxc6 {[%clk
0:00:45.2]} 32... Bf8 {[%clk 0:01:05.1]} 33. Rfd2 {[%clk 0:00:40.1]} 33... Nxd6
{[%clk 0:00:55.5]} 34. exd6 {[%clk 0:00:42]} 34... Bb3 {[%clk 0:00:55.7]} 35.
Re1 {[%clk 0:00:33.5]} 35... Rxd6 {[%clk 0:00:55.1]} 36. Rxd6 {[%clk 0:00:29.9]}
36... Bxd6 {[%clk 0:00:57]} 37. Re3 {[%clk 0:00:31.7]} 37... Rxb2 {[%clk
0:00:54.7]} 38. Rd3 {[%clk 0:00:31.4]} 38... Bc5 {[%clk 0:00:53.4]} 39. h4
{[%clk 0:00:23.6]} 39... Bc4 {[%clk 0:00:51.2]} 40. Rd8+ {[%clk 0:00:21.9]}
40... Kg7 {[%clk 0:00:50.5]} 41. h5 {[%clk 0:00:23.8]} 41... Rb1+ {[%clk
0:00:40.9]} 42. Kg2 {[%clk 0:00:23.9]} 42... Be2 {[%clk 0:00:40.2]} 43. hxg6
{[%clk 0:00:23.1]} 43... Rg1+ {[%clk 0:00:30.5]} 44. Kh2 {[%clk 0:00:19.6]}
44... Rc1 {[%clk 0:00:28.8]} 45. gxf7 {[%clk 0:00:19.1]} 45... Kxf7 {[%clk
0:00:28.1]} 46. Bd5+ {[%clk 0:00:19.5]} 46... Ke7 {[%clk 0:00:27.9]} 47. Rh8
{[%clk 0:00:20.1]} 47... b4 {[%clk 0:00:22.8]} 48. Rxh6 {[%clk 0:00:19.6]} 48...
Bc4 {[%clk 0:00:22.4]} 49. Be4 {[%clk 0:00:17.8]} 49... b3 {[%clk 0:00:22.3]}
50. f5 {[%clk 0:00:18]} 50... Bd4 {[%clk 0:00:20.9]} 51. g4 {[%clk 0:00:18.1]}
51... Be5+ {[%clk 0:00:17.4]} 52. Kg2 {[%clk 0:00:16.8]} 52... b2 {[%clk
0:00:18.7]} 53. Rh7+ {[%clk 0:00:17.2]} 53... Kf8 {[%clk 0:00:17.9]} 54. Kf2
{[%clk 0:00:15.4]} 54... b1=Q {[%clk 0:00:15.6]} 55. Bxb1 {[%clk 0:00:16.9]}
55... Rxb1 {[%clk 0:00:16.9]} 56. Kf3 {[%clk 0:00:18.5]} 56... Rb3+ {[%clk
0:00:17.2]} 57. Ke4 {[%clk 0:00:19.6]} 57... Bf6 {[%clk 0:00:17.9]} 58. Rc7
{[%clk 0:00:16.9]} 58... b5 {[%clk 0:00:17.5]} 59. Rc8+ {[%clk 0:00:15.6]} 59...
Kg7 {[%clk 0:00:18.5]} 60. Rc7+ {[%clk 0:00:17.5]} 60... Bf7 {[%clk 0:00:19.1]}
61. Rb7 {[%clk 0:00:15.1]} 61... Rb4+ {[%clk 0:00:19.9]} 62. Kf3 {[%clk
0:00:16.1]} 62... Bg5 {[%clk 0:00:21]} 63. Kg3 {[%clk 0:00:14.5]} 63... Kf6
{[%clk 0:00:21.5]} 64. Rb6+ {[%clk 0:00:15.1]} 64... Ke5 {[%clk 0:00:22.2]} 65.
Rb7 {[%clk 0:00:16.6]} 65... Rb3+ {[%clk 0:00:22.6]} 66. Kf2 {[%clk 0:00:16.9]}
66... Bd5 {[%clk 0:00:22.4]} 67. Rg7 {[%clk 0:00:17.5]} 67... Kf4 {[%clk
0:00:22]} 68. Rg6 {[%clk 0:00:17]} 68... Bc4 {[%clk 0:00:22.1]} 69. f6 {[%clk
0:00:17.5]} 69... Rb2+ {[%clk 0:00:21.8]} 70. Ke1 {[%clk 0:00:18.4]} 70... Bh4+
{[%clk 0:00:21.9]} 71. Kd1 {[%clk 0:00:19.2]} 71... Ke3 {[%clk 0:00:21.7]} 72.
Rh6 {[%clk 0:00:17.9]} 72... Rb1+ {[%clk 0:00:20.7]} 73. Kc2 {[%clk 0:00:17.8]}
73... Bd3+ {[%clk 0:00:22]} 74. Kc3 {[%clk 0:00:19.4]} 74... b4# {[%clk
0:00:21.4]} 0-1

[Event "*** Titled Tuesday 3|2 Blitz"]
[Site "Chess.com"]
[Date "2015.12.01"]
[Round "1"]
[White "rikyshi"]
[Black "Blitzstream"]
[Result "1/2-1/2"]
[WhiteElo "2118"]
[BlackElo "2413"]
[TimeControl "180+2"]
[EndTime "11:11:49 PST"]
[Termination "Game drawn - insufficient material"]

1. e4 {[%clk 0:03:01.3]} 1... d5 {[%clk 0:02:54.1]} 2. exd5 {[%clk 0:03:02]}
2... Qxd5 {[%clk 0:02:56]} 3. Nc3 {[%clk 0:03:03.2]} 3... Qa5 {[%clk 0:02:56.4]}
4. Nf3 {[%clk 0:03:04]} 4... Nf6 {[%clk 0:02:56.2]} 5. Be2 {[%clk 0:02:55.5]}
5... Bg4 {[%clk 0:02:56.2]} 6. h3 {[%clk 0:02:53.3]} 6... Bh5 {[%clk 0:02:55.3]}
7. b4 {[%clk 0:02:53.8]} 7... Qb6 {[%clk 0:02:53.9]} 8. a4 {[%clk 0:02:54.9]}
8... c6 {[%clk 0:02:54.5]} 9. Rb1 {[%clk 0:02:55]} 9... e6 {[%clk 0:02:55]} 10.
b5 {[%clk 0:02:56.2]} 10... c5 {[%clk 0:02:55.6]} 11. Ne5 {[%clk 0:02:56.8]}
11... Bxe2 {[%clk 0:02:52]} 12. Qxe2 {[%clk 0:02:58.7]} 12... Nbd7 {[%clk
0:02:51.8]} 13. Nc4 {[%clk 0:02:59.8]} 13... Qc7 {[%clk 0:02:50.4]} 14. a5
{[%clk 0:02:58.8]} 14... Be7 {[%clk 0:02:44.2]} 15. b6 {[%clk 0:02:45.5]} 15...
axb6 {[%clk 0:02:44.4]} 16. axb6 {[%clk 0:02:46.6]} 16... Qc6 {[%clk 0:02:43.3]}
17. Nb5 {[%clk 0:02:40.2]} 17... Qxg2 {[%clk 0:02:12.7]} 18. Nc7+ {[%clk
0:02:37.2]} 18... Kf8 {[%clk 0:02:13.2]} 19. Rf1 {[%clk 0:02:21.7]} 19... Rc8
{[%clk 0:01:51.8]} 20. Rb3 {[%clk 0:01:05.7]} 20... Bd8 {[%clk 0:01:17.6]} 21.
Nd6 {[%clk 0:01:03.1]} 21... Bxc7 {[%clk 0:01:06.2]} 22. Nxc8 {[%clk 0:00:59.6]}
22... Be5 {[%clk 0:01:01.4]} 23. Ba3 {[%clk 0:00:53.1]} 23... Qc6 {[%clk
0:01:00.5]} 24. Na7 {[%clk 0:00:53]} 24... Qa4 {[%clk 0:00:55.4]} 25. Qb5 {[%clk
0:00:46.2]} 25... Qe4+ {[%clk 0:00:52.9]} 26. Re3 {[%clk 0:00:34.9]} 26... Qxc2
{[%clk 0:00:39.9]} 27. Qb3 {[%clk 0:00:29]} 27... Qxb3 {[%clk 0:00:36.7]} 28.
Rxb3 {[%clk 0:00:30.9]} 28... Ke7 {[%clk 0:00:38.4]} 29. Rb5 {[%clk 0:00:31]}
29... Kd6 {[%clk 0:00:39.5]} 30. f4 {[%clk 0:00:31.9]} 30... Bd4 {[%clk
0:00:40.7]} 31. Ke2 {[%clk 0:00:30.7]} 31... Nd5 {[%clk 0:00:41.9]} 32. f5
{[%clk 0:00:27.1]} 32... e5 {[%clk 0:00:42.1]} 33. Rbb1 {[%clk 0:00:23.9]} 33...
N7xb6 {[%clk 0:00:41.3]} 34. Nb5+ {[%clk 0:00:25.2]} 34... Kc6 {[%clk
0:00:41.8]} 35. Nxd4+ {[%clk 0:00:25.6]} 35... exd4 {[%clk 0:00:43.7]} 36. Rfc1
{[%clk 0:00:23.7]} 36... c4 {[%clk 0:00:43.2]} 37. Rg1 {[%clk 0:00:23.7]} 37...
g6 {[%clk 0:00:43.8]} 38. Bb2 {[%clk 0:00:20.1]} 38... Re8+ {[%clk 0:00:42.3]}
39. Kf3 {[%clk 0:00:19.9]} 39... c3 {[%clk 0:00:43.1]} 40. dxc3 {[%clk
0:00:20.7]} 40... dxc3 {[%clk 0:00:44.1]} 41. Rbc1 {[%clk 0:00:20.5]} 41... Nc4
{[%clk 0:00:40.9]} 42. Bxc3 {[%clk 0:00:20.3]} 42... Re3+ {[%clk 0:00:42]} 43.
Kf2 {[%clk 0:00:21.6]} 43... Nxc3 {[%clk 0:00:43.2]} 44. fxg6 {[%clk 0:00:19]}
44... hxg6 {[%clk 0:00:45.1]} 45. Rg4 {[%clk 0:00:20]} 45... b5 {[%clk
0:00:44.2]} 46. Rxc4+ {[%clk 0:00:21.1]} 46... bxc4 {[%clk 0:00:44.9]} 47. Kxe3
{[%clk 0:00:22.7]} 47... Nd5+ {[%clk 0:00:43.7]} 48. Kd4 {[%clk 0:00:23.9]}
48... Nf4 {[%clk 0:00:44.7]} 49. Rxc4+ {[%clk 0:00:24.9]} 49... Kd6 {[%clk
0:00:46.1]} 50. h4 {[%clk 0:00:24.6]} 50... Ne6+ {[%clk 0:00:42.3]} 51. Ke4
{[%clk 0:00:24.9]} 51... f5+ {[%clk 0:00:43.9]} 52. Kf3 {[%clk 0:00:24.8]} 52...
Ke5 {[%clk 0:00:45.6]} 53. Ra4 {[%clk 0:00:24]} 53... Nd4+ {[%clk 0:00:46.4]}
54. Kg2 {[%clk 0:00:23.9]} 54... Ne6 {[%clk 0:00:46.8]} 55. Ra5+ {[%clk
0:00:24.9]} 55... Kf4 {[%clk 0:00:46.4]} 56. Ra4+ {[%clk 0:00:26]} 56... Ke5
{[%clk 0:00:46.7]} 57. Ra1 {[%clk 0:00:20.4]} 57... Nf4+ {[%clk 0:00:41.1]} 58.
Kf3 {[%clk 0:00:19.8]} 58... Ne6 {[%clk 0:00:38.9]} 59. Re1+ {[%clk 0:00:20.3]}
59... Kf6 {[%clk 0:00:40]} 60. Rg1 {[%clk 0:00:21]} 60... Nc5 {[%clk 0:00:39.3]}
61. Kf4 {[%clk 0:00:21.3]} 61... Nd3+ {[%clk 0:00:40.2]} 62. Ke3 {[%clk
0:00:22.5]} 62... Ne5 {[%clk 0:00:41.5]} 63. Kf4 {[%clk 0:00:22.3]} 63... Nd3+
{[%clk 0:00:38.2]} 64. Ke3 {[%clk 0:00:23.4]} 64... Nc5 {[%clk 0:00:39.8]} 65.
Kd4 {[%clk 0:00:22.9]} 65... Ne6+ {[%clk 0:00:41]} 66. Ke3 {[%clk 0:00:24.2]}
66... Ng7 {[%clk 0:00:36.5]} 67. Rg5 {[%clk 0:00:21.5]} 67... Nh5 {[%clk
0:00:35.3]} 68. Kf3 {[%clk 0:00:22.8]} 68... Kg7 {[%clk 0:00:34.3]} 69. Rg1
{[%clk 0:00:21.9]} 69... Kh6 {[%clk 0:00:35.5]} 70. Rg5 {[%clk 0:00:20.7]} 70...
Ng7 {[%clk 0:00:36.2]} 71. Rg1 {[%clk 0:00:14.1]} 71... Kh5 {[%clk 0:00:35.5]}
72. Kf4 {[%clk 0:00:15.3]} 72... Ne6+ {[%clk 0:00:35.8]} 73. Ke5 {[%clk
0:00:16.4]} 73... Nf8 {[%clk 0:00:35]} 74. Kf6 {[%clk 0:00:17.2]} 74... Nd7+
{[%clk 0:00:32.9]} 75. Ke7 {[%clk 0:00:17.3]} 75... Ne5 {[%clk 0:00:33.9]} 76.
Kf6 {[%clk 0:00:15.7]} 76... Ng4+ {[%clk 0:00:35.1]} 77. Kg7 {[%clk 0:00:12.7]}
77... Ne5 {[%clk 0:00:28.5]} 78. Kf6 {[%clk 0:00:11.3]} 78... Nf3 {[%clk
0:00:28.9]} 79. Rg3 {[%clk 0:00:12.6]} 79... Nxh4 {[%clk 0:00:29.8]} 80. Rxg6
{[%clk 0:00:12.9]} 80... Nxg6 {[%clk 0:00:26.1]} 81. Kxf5 {[%clk 0:00:14.2]}
1/2-1/2

[Event "*** Titled Tuesday 3|2 Blitz"]
[Site "Chess.com"]
[Date "2015.12.01"]
[Round "2"]
[White "Rikikits"]
[Black "ChessWarrior7197"]
[Result "1-0"]
[WhiteElo "2575"]
[BlackElo "2446"]
[TimeControl "180+2"]
[EndTime "11:17:13 PST"]
[Termination "Rikikits won by resignation"]

1. e4 {[%clk 0:03:01.9]} 1... c5 {[%clk 0:03:00.5]} 2. Nf3 {[%clk 0:03:02.9]}
2... d6 {[%clk 0:03:01.8]} 3. d4 {[%clk 0:03:04.3]} 3... cxd4 {[%clk 0:03:02.9]}
4. Nxd4 {[%clk 0:03:06.2]} 4... Nf6 {[%clk 0:03:04.1]} 5. Nc3 {[%clk 0:03:07.6]}
5... a6 {[%clk 0:03:05]} 6. h3 {[%clk 0:03:08.7]} 6... e5 {[%clk 0:03:04.4]} 7.
Nde2 {[%clk 0:03:09.9]} 7... Be7 {[%clk 0:03:05.6]} 8. g4 {[%clk 0:03:10.9]}
8... O-O {[%clk 0:03:05.7]} 9. Bg2 {[%clk 0:03:11.9]} 9... h6 {[%clk 0:03:06.7]}
10. Ng3 {[%clk 0:03:11.8]} 10... Nc6 {[%clk 0:03:04.7]} 11. Nf5 {[%clk
0:03:12.8]} 11... Bxf5 {[%clk 0:03:04.7]} 12. exf5 {[%clk 0:03:14.7]} 12... Qc7
{[%clk 0:03:00.8]} 13. h4 {[%clk 0:03:12.8]} 13... d5 {[%clk 0:02:15]} 14. g5
{[%clk 0:03:12.5]} 14... Ne4 {[%clk 0:02:12.1]} 15. Nxd5 {[%clk 0:02:55.6]}
15... Qa5+ {[%clk 0:02:12.2]} 16. c3 {[%clk 0:02:56.9]} 16... Nd6 {[%clk
0:01:59.4]} 17. f6 {[%clk 0:02:50.9]} 17... Bd8 {[%clk 0:01:56]} 18. fxg7 {[%clk
0:02:48.7]} 18... Kxg7 {[%clk 0:01:56.2]} 19. Qh5 {[%clk 0:02:44.9]} 19... Rh8
{[%clk 0:01:49.8]} 20. gxh6+ {[%clk 0:02:42.8]} 20... Kf8 {[%clk 0:01:50.3]} 21.
Bg5 {[%clk 0:02:37.1]} 21... e4 {[%clk 0:01:51]} 22. Rd1 {[%clk 0:02:27.4]}
22... Ne5 {[%clk 0:01:49]} 23. Bxd8 {[%clk 0:02:19.1]} 23... Nd3+ {[%clk
0:01:36.5]} 24. Rxd3 {[%clk 0:02:19.1]} 24... Rxd8 {[%clk 0:01:38.3]} 25. Qe5
{[%clk 0:02:09.2]} 25... Rxh6 {[%clk 0:01:35.2]} 26. Qe7+ {[%clk 0:02:09.3]}
26... Kg7 {[%clk 0:01:34.5]} 27. Rg3+ {[%clk 0:02:11.2]} 27... Kh7 {[%clk
0:01:34.3]} 28. Bxe4+ {[%clk 0:01:59.2]} 28... Nxe4 {[%clk 0:01:32.9]} 29. Qxe4+
{[%clk 0:01:58.4]} 29... Kh8 {[%clk 0:01:34.1]} 30. Qe5+ {[%clk 0:01:53]} 30...
f6 {[%clk 0:01:34.7]} 31. Qe7 {[%clk 0:01:54.3]} 1-0